[Event "Titled Tuesday Blitz December 06 Early 2022"]
[White "Tsatsalashvili, Keti"]
[Black "Rodriguez Fontecha, Marcos"]
[WhiteFideId "13603434"]
[BlackFideId "2256576"]
[WhiteElo "2220"]
[BlackElo "2263"]
[Result "0-1"]
[Round "02"]
[TimeControl "180+1"]
[Date "2022.12.07"]
[WhiteClock "0:00:57"]
[BlackClock "0:01:09"]

1. d4 {[%clk 0:03:00]}  d5 {[%clk 0:02:42]} 2. Nf3 {[%clk 0:02:59]}  Nf6 {[%clk 0:02:42]} 3. c4 {[%clk 0:02:55]}  c6 {[%clk 0:02:38]} 4. e3 {[%clk 0:02:53]}  g6 {[%clk 0:02:38]} 5. Nbd2 {[%clk 0:02:51]}  Bg7 {[%clk 0:02:38]} 6. Bd3 {[%clk 0:02:41]}  O-O {[%clk 0:02:36]} 7. h3 {[%clk 0:02:37]}  a6 {[%clk 0:02:37]} 8. c5 {[%clk 0:02:32]}  Nfd7 {[%clk 0:02:34]} 9. O-O {[%clk 0:02:22]}  e5 {[%clk 0:02:35]} 10. Ne1 {[%clk 0:02:14]}  exd4 {[%clk 0:02:34]} 11. exd4 {[%clk 0:02:14]}  Bxd4 {[%clk 0:02:35]} 12. Nb3 {[%clk 0:02:12]}  Bg7 {[%clk 0:02:31]} 13. Bd2 {[%clk 0:02:07]}  a5 {[%clk 0:02:27]} 14. Bf4 {[%clk 0:02:07]}  a4 {[%clk 0:02:25]} 15. Bd6 {[%clk 0:01:53]}  axb3 {[%clk 0:02:23]} 16. Bxf8 {[%clk 0:01:50]}  Qxf8 {[%clk 0:02:22]} 17. axb3 {[%clk 0:01:50]}  Rxa1 {[%clk 0:02:21]} 18. Qxa1 {[%clk 0:01:48]}  Nxc5 {[%clk 0:02:21]} 19. Bc2 {[%clk 0:01:45]}  Nba6 {[%clk 0:02:08]} 20. Nd3 {[%clk 0:01:42]}  Nxd3 {[%clk 0:02:05]} 21. Bxd3 {[%clk 0:01:43]}  Nb4 {[%clk 0:02:01]} 22. Be2 {[%clk 0:01:34]}  Bf5 {[%clk 0:01:56]} 23. Qa3 {[%clk 0:01:31]}  Bd3 {[%clk 0:01:37]} 24. Bxd3 {[%clk 0:01:27]}  Nxd3 {[%clk 0:01:37]} 25. Qa7 {[%clk 0:01:27]}  Qb4 {[%clk 0:01:32]} 26. Qb8+ {[%clk 0:01:23]}  Bf8 {[%clk 0:01:31]} 27. Ra1 {[%clk 0:01:19]}  h5 {[%clk 0:01:23]} 28. Ra7 {[%clk 0:01:16]}  Qe1+ {[%clk 0:01:18]} 29. Kh2 {[%clk 0:01:16]}  Nxf2 {[%clk 0:01:12]} 30. Ra8 {[%clk 0:01:04]}  Qh1+ {[%clk 0:01:09]} 31. Kg3 {[%clk 0:01:03]}  Ne4+ {[%clk 0:01:09]} 32. Kf3 {[%clk 0:00:59]}  Qf1+ {[%clk 0:01:09]} 33. Ke3 {[%clk 0:00:57]}  Qf2+ {[%clk 0:01:09]} 34. Kd3 {[%clk 0:00:57]}  Qd2# {[%clk 0:01:09]} 0-1


[Site "https://www.chess.com"]

[Event "Titled Tuesday Blitz December 06 Early 2022"]
[White "Valle Maytin, Luis Enrique"]
[Black "Aloma Vidal, Robert"]
[WhiteFideId "3503666"]
[BlackFideId "2260409"]
[WhiteElo "2225"]
[BlackElo "2435"]
[Result "0-1"]
[Round "02"]
[TimeControl "180+1"]
[Date "2022.12.07"]
[WhiteClock "0:00:11"]
[BlackClock "0:00:48"]

1. e4 {[%clk 0:03:00]}  e5 {[%clk 0:02:59]} 2. Nf3 {[%clk 0:02:57]}  Nf6 {[%clk 0:03:00]} 3. Nxe5 {[%clk 0:02:57]}  d6 {[%clk 0:03:00]} 4. Nd3 {[%clk 0:02:57]}  Nxe4 {[%clk 0:03:00]} 5. Qe2 {[%clk 0:02:58]}  Qe7 {[%clk 0:02:59]} 6. Nf4 {[%clk 0:02:57]}  c6 {[%clk 0:02:54]} 7. d4 {[%clk 0:02:56]}  Nf6 {[%clk 0:02:43]} 8. Be3 {[%clk 0:02:55]}  Bg4 {[%clk 0:02:36]} 9. f3 {[%clk 0:02:54]}  Bf5 {[%clk 0:02:36]} 10. Nc3 {[%clk 0:02:47]}  Nbd7 {[%clk 0:02:35]} 11. h4 {[%clk 0:02:45]}  h5 {[%clk 0:02:33]} 12. Qd2 {[%clk 0:02:26]}  Bxc2 {[%clk 0:02:26]} 13. Kf2 {[%clk 0:02:11]}  Bf5 {[%clk 0:02:18]} 14. Bd3 {[%clk 0:02:09]}  Bxd3 {[%clk 0:02:17]} 15. Nxd3 {[%clk 0:02:09]}  O-O-O {[%clk 0:02:15]} 16. Bf4 {[%clk 0:02:04]}  Nb6 {[%clk 0:02:05]} 17. Rhe1 {[%clk 0:01:49]}  Qd7 {[%clk 0:02:03]} 18. b3 {[%clk 0:01:42]}  Qf5 {[%clk 0:01:56]} 19. Bg3 {[%clk 0:01:39]}  g6 {[%clk 0:01:48]} 20. a4 {[%clk 0:01:24]}  Bh6 {[%clk 0:01:46]} 21. Qc2 {[%clk 0:01:14]}  Nbd5 {[%clk 0:01:40]} 22. Nxd5 {[%clk 0:01:09]}  Nxd5 {[%clk 0:01:38]} 23. Kg1 {[%clk 0:01:06]}  Rhe8 {[%clk 0:01:31]} 24. Bf2 {[%clk 0:00:54]}  Nf4 {[%clk 0:01:27]} 25. Nb4 {[%clk 0:00:47]}  Qxc2 {[%clk 0:01:24]} 26. Nxc2 {[%clk 0:00:48]}  Nd3 {[%clk 0:01:16]} 27. Rxe8 {[%clk 0:00:43]}  Rxe8 {[%clk 0:01:16]} 28. Bg3 {[%clk 0:00:43]}  Re2 {[%clk 0:01:13]} 29. Na3 {[%clk 0:00:43]}  d5 {[%clk 0:01:08]} 30. Rd1 {[%clk 0:00:35]}  Nf4 {[%clk 0:01:03]} 31. Bxf4 {[%clk 0:00:30]}  Bxf4 {[%clk 0:01:04]} 32. Nb1 {[%clk 0:00:20]}  Rc2 {[%clk 0:01:03]} 33. Re1 {[%clk 0:00:17]}  Kd7 {[%clk 0:01:02]} 34. Na3 {[%clk 0:00:18]}  Rc3 {[%clk 0:01:02]} 35. Rb1 {[%clk 0:00:17]}  Be3+ {[%clk 0:01:01]} 36. Kh2 {[%clk 0:00:18]}  Bxd4 {[%clk 0:01:01]} 37. Rd1 {[%clk 0:00:16]}  Be5+ {[%clk 0:01:01]} 38. Kh3 {[%clk 0:00:15]}  Rxb3 {[%clk 0:01:01]} 39. Nc2 {[%clk 0:00:15]}  Rc3 {[%clk 0:00:57]} 40. Ne1 {[%clk 0:00:14]}  Ra3 {[%clk 0:00:55]} 41. Nd3 {[%clk 0:00:14]}  Bd6 {[%clk 0:00:55]} 42. Nb2 {[%clk 0:00:13]}  Ra2 {[%clk 0:00:55]} 43. Rd2 {[%clk 0:00:07]}  Be5 {[%clk 0:00:54]} 44. Nc4 {[%clk 0:00:07]}  Rxd2 {[%clk 0:00:54]} 45. Nxd2 {[%clk 0:00:08]}  c5 {[%clk 0:00:54]} 46. g3 {[%clk 0:00:08]}  c4 {[%clk 0:00:54]} 47. f4 {[%clk 0:00:09]}  Bc3 {[%clk 0:00:54]} 48. Nb1 {[%clk 0:00:08]}  Bb4 {[%clk 0:00:55]} 49. Kg2 {[%clk 0:00:09]}  d4 {[%clk 0:00:55]} 50. Kf2 {[%clk 0:00:08]}  Kd6 {[%clk 0:00:56]} 51. Ke2 {[%clk 0:00:09]}  Kd5 {[%clk 0:00:56]} 52. Kd1 {[%clk 0:00:10]}  Ke4 {[%clk 0:00:57]} 53. Kc2 {[%clk 0:00:10]}  d3+ {[%clk 0:00:56]} 54. Kd1 {[%clk 0:00:10]}  Ke3 {[%clk 0:00:56]} 55. a5 {[%clk 0:00:10]}  b5 {[%clk 0:00:54]} 56. axb6 {[%clk 0:00:10]}  axb6 {[%clk 0:00:55]} 57. g4 {[%clk 0:00:10]}  hxg4 {[%clk 0:00:53]} 58. f5 {[%clk 0:00:11]}  g3 {[%clk 0:00:53]} 59. fxg6 {[%clk 0:00:11]}  fxg6 {[%clk 0:00:53]} 60. h5 {[%clk 0:00:11]}  g2 {[%clk 0:00:53]} 61. Kc1 {[%clk 0:00:10]}  c3 {[%clk 0:00:53]} 62. Nxc3 {[%clk 0:00:09]}  Bxc3 {[%clk 0:00:53]} 63. Kb1 {[%clk 0:00:10]}  g1=Q+ {[%clk 0:00:53]} 64. Ka2 {[%clk 0:00:11]}  Qa1+ {[%clk 0:00:48]} 65. Kb3 {[%clk 0:00:12]}  b5 {[%clk 0:00:48]} 66. hxg6 {[%clk 0:00:11]}  Qb2# {[%clk 0:00:48]} 0-1


[Site "https://www.chess.com"]

[Event "Titled Tuesday Blitz December 06 Early 2022"]
[White "Viana Da Costa, Fernando"]
[Black "Movahed, Sina"]
[WhiteFideId "2111900"]
[BlackFideId "42520835"]
[WhiteElo "2259"]
[BlackElo "2225"]
[Result "0-1"]
[Round "02"]
[TimeControl "180+1"]
[Date "2022.12.07"]
[WhiteClock "0:01:13"]
[BlackClock "0:02:05"]

1. e4 {[%clk 0:03:00]}  c5 {[%clk 0:02:59]} 2. Nf3 {[%clk 0:03:00]}  d6 {[%clk 0:02:58]} 3. d3 {[%clk 0:02:57]}  Nf6 {[%clk 0:02:58]} 4. g3 {[%clk 0:02:55]}  g6 {[%clk 0:02:58]} 5. Bg2 {[%clk 0:02:52]}  Bg7 {[%clk 0:02:58]} 6. O-O {[%clk 0:02:52]}  O-O {[%clk 0:02:59]} 7. h3 {[%clk 0:02:49]}  Nc6 {[%clk 0:02:59]} 8. Re1 {[%clk 0:02:46]}  Rb8 {[%clk 0:02:58]} 9. c3 {[%clk 0:02:44]}  b5 {[%clk 0:02:58]} 10. d4 {[%clk 0:02:45]}  b4 {[%clk 0:02:58]} 11. d5 {[%clk 0:02:22]}  Na5 {[%clk 0:02:53]} 12. Bf1 {[%clk 0:02:11]}  e6 {[%clk 0:02:46]} 13. cxb4 {[%clk 0:01:58]}  Rxb4 {[%clk 0:02:39]} 14. dxe6 {[%clk 0:01:57]}  Bxe6 {[%clk 0:02:35]} 15. Nc3 {[%clk 0:01:57]}  d5 {[%clk 0:02:27]} 16. exd5 {[%clk 0:01:44]}  Nxd5 {[%clk 0:02:28]} 17. Ne4 {[%clk 0:01:42]}  c4 {[%clk 0:02:17]} 18. Neg5 {[%clk 0:01:29]}  Bc8 {[%clk 0:02:13]} 19. Bd2 {[%clk 0:01:13]}  Rxb2 {[%clk 0:02:10]} 20. Bxa5 {[%clk 0:01:12]}  Qxa5 {[%clk 0:02:10]} 21. Bxc4 {[%clk 0:01:13]}  Qc5 {[%clk 0:02:05]} 0-1


[Site "https://www.chess.com"]

[Event "Titled Tuesday Blitz December 06 Early 2022"]
[White "Vifleemskaia, Svetlana"]
[Black "Bazarov, Konstantin"]
[WhiteFideId "4129490"]
[BlackFideId "4137000"]
[WhiteElo "1930"]
[BlackElo "2228"]
[Result "1-0"]
[Round "02"]
[TimeControl "180+1"]
[Date "2022.12.07"]
[WhiteClock "0:00:10"]
[BlackClock "0:00:14"]

1. d4 {[%clk 0:03:00]}  b6 {[%clk 0:02:59]} 2. c4 {[%clk 0:03:00]}  Bb7 {[%clk 0:03:00]} 3. Nc3 {[%clk 0:03:00]}  Nf6 {[%clk 0:03:01]} 4. a3 {[%clk 0:02:59]}  d5 {[%clk 0:03:00]} 5. cxd5 {[%clk 0:02:51]}  Nxd5 {[%clk 0:02:59]} 6. Qc2 {[%clk 0:02:51]}  Nxc3 {[%clk 0:02:56]} 7. bxc3 {[%clk 0:02:50]}  e6 {[%clk 0:02:57]} 8. e4 {[%clk 0:02:50]}  Be7 {[%clk 0:02:57]} 9. Nf3 {[%clk 0:02:49]}  O-O {[%clk 0:02:56]} 10. Bd3 {[%clk 0:02:48]}  c5 {[%clk 0:02:56]} 11. O-O {[%clk 0:02:46]}  cxd4 {[%clk 0:02:54]} 12. cxd4 {[%clk 0:02:46]}  Nc6 {[%clk 0:02:54]} 13. Bb2 {[%clk 0:02:43]}  Rc8 {[%clk 0:02:53]} 14. Qd2 {[%clk 0:02:43]}  Na5 {[%clk 0:02:51]} 15. Qe2 {[%clk 0:02:28]}  Bf6 {[%clk 0:02:39]} 16. Rad1 {[%clk 0:02:19]}  Qd7 {[%clk 0:02:34]} 17. Bb5 {[%clk 0:02:10]}  Bc6 {[%clk 0:02:32]} 18. Ba6 {[%clk 0:02:09]}  Rcd8 {[%clk 0:02:29]} 19. d5 {[%clk 0:02:02]}  exd5 {[%clk 0:02:24]} 20. e5 {[%clk 0:01:49]}  Be7 {[%clk 0:02:22]} 21. Nd4 {[%clk 0:01:45]}  Qc7 {[%clk 0:02:03]} 22. Rc1 {[%clk 0:01:32]}  Bc5 {[%clk 0:02:00]} 23. Nf5 {[%clk 0:01:26]}  Bd7 {[%clk 0:01:36]} 24. Nxg7 {[%clk 0:01:09]}  Kxg7 {[%clk 0:01:32]} 25. e6+ {[%clk 0:01:08]}  f6 {[%clk 0:01:26]} 26. e7 {[%clk 0:01:08]}  Rde8 {[%clk 0:01:19]} 27. exf8=Q+ {[%clk 0:01:07]}  Rxf8 {[%clk 0:01:18]} 28. Qh5 {[%clk 0:01:04]}  Qd6 {[%clk 0:01:06]} 29. Bd3 {[%clk 0:00:59]}  Rh8 {[%clk 0:01:02]} 30. Rfe1 {[%clk 0:00:49]}  Nc6 {[%clk 0:00:56]} 31. Qg5+ {[%clk 0:00:43]}  Kf7 {[%clk 0:00:54]} 32. Qh6 {[%clk 0:00:43]}  Ne5 {[%clk 0:00:30]} 33. Bxh7 {[%clk 0:00:38]}  Qf8 {[%clk 0:00:29]} 34. Qh5+ {[%clk 0:00:34]}  Kg7 {[%clk 0:00:26]} 35. Rxe5 {[%clk 0:00:24]}  Rxh7 {[%clk 0:00:25]} 36. Rg5+ {[%clk 0:00:24]}  Kh8 {[%clk 0:00:25]} 37. Qg6 {[%clk 0:00:17]}  d4 {[%clk 0:00:25]} 38. Rh5 {[%clk 0:00:16]}  Rxh5 {[%clk 0:00:19]} 39. Qxh5+ {[%clk 0:00:17]}  Kg7 {[%clk 0:00:20]} 40. Qd5 {[%clk 0:00:16]}  Qf7 {[%clk 0:00:19]} 41. Qxf7+ {[%clk 0:00:14]}  Kxf7 {[%clk 0:00:19]} 42. Rd1 {[%clk 0:00:15]}  Bg4 {[%clk 0:00:17]} 43. f3 {[%clk 0:00:15]}  d3+ {[%clk 0:00:16]} 44. Kf1 {[%clk 0:00:14]}  Bf5 {[%clk 0:00:16]} 45. g4 {[%clk 0:00:14]}  Bh7 {[%clk 0:00:16]} 46. a4 {[%clk 0:00:13]}  Ke6 {[%clk 0:00:16]} 47. h4 {[%clk 0:00:13]}  Kd5 {[%clk 0:00:17]} 48. Bxf6 {[%clk 0:00:12]}  Kc4 {[%clk 0:00:17]} 49. h5 {[%clk 0:00:12]}  Bb4 {[%clk 0:00:16]} 50. g5 {[%clk 0:00:12]}  d2 {[%clk 0:00:15]} 51. g6 {[%clk 0:00:12]}  Bg8 {[%clk 0:00:15]} 52. Bg5 {[%clk 0:00:11]}  Kd3 {[%clk 0:00:15]} 53. Bxd2 {[%clk 0:00:10]}  Bxd2 {[%clk 0:00:14]} 54. Rxd2+ {[%clk 0:00:10]}  Kxd2 {[%clk 0:00:14]} 55. h6 {[%clk 0:00:11]}  Bc4+ {[%clk 0:00:13]} 56. Kf2 {[%clk 0:00:10]}  Bd3 {[%clk 0:00:14]} 57. h7 {[%clk 0:00:10]}  Bxg6 {[%clk 0:00:14]} 58. h8=Q {[%clk 0:00:10]}  Bd3 {[%clk 0:00:14]} 59. Qd4 {[%clk 0:00:10]} 1-0


[Site "https://www.chess.com"]

[Event "Titled Tuesday Blitz December 06 Early 2022"]
[White "Vlassov, Nikolai"]
[Black "Shapiro, Daniel"]
[WhiteFideId "4103360"]
[BlackFideId "2001780"]
[WhiteElo "2324"]
[BlackElo "2309"]
[Result "1-0"]
[Round "02"]
[TimeControl "180+1"]
[Date "2022.12.07"]
[WhiteClock "0:00:15"]
[BlackClock "0:00:05"]

1. e4 {[%clk 0:02:31]}  e5 {[%clk 0:02:59]} 2. Bc4 {[%clk 0:02:30]}  Nf6 {[%clk 0:02:57]} 3. d3 {[%clk 0:02:30]}  h6 {[%clk 0:02:52]} 4. f4 {[%clk 0:02:29]}  d6 {[%clk 0:02:32]} 5. Nf3 {[%clk 0:02:28]}  Nc6 {[%clk 0:02:31]} 6. Nc3 {[%clk 0:02:28]}  Bg4 {[%clk 0:02:29]} 7. O-O {[%clk 0:02:27]}  Be7 {[%clk 0:02:28]} 8. h3 {[%clk 0:02:25]}  Bxf3 {[%clk 0:02:26]} 9. Qxf3 {[%clk 0:02:26]}  Nd4 {[%clk 0:02:25]} 10. Qf2 {[%clk 0:02:25]}  c6 {[%clk 0:02:22]} 11. fxe5 {[%clk 0:02:24]}  dxe5 {[%clk 0:02:21]} 12. Be3 {[%clk 0:02:24]}  O-O {[%clk 0:02:10]} 13. Kh1 {[%clk 0:02:14]}  b5 {[%clk 0:02:07]} 14. Bb3 {[%clk 0:02:08]}  a5 {[%clk 0:02:06]} 15. Qg3 {[%clk 0:01:53]}  a4 {[%clk 0:01:35]} 16. Bxh6 {[%clk 0:01:48]}  Nh5 {[%clk 0:01:28]} 17. Qxe5 {[%clk 0:01:47]}  axb3 {[%clk 0:01:22]} 18. Qxh5 {[%clk 0:01:42]}  gxh6 {[%clk 0:01:22]} 19. cxb3 {[%clk 0:01:29]}  Bg5 {[%clk 0:00:53]} 20. e5 {[%clk 0:01:19]}  Qe7 {[%clk 0:00:30]} 21. Rae1 {[%clk 0:01:17]}  Qe6 {[%clk 0:00:30]} 22. Re4 {[%clk 0:01:11]}  Nf5 {[%clk 0:00:23]} 23. Rg4 {[%clk 0:01:00]}  Ng7 {[%clk 0:00:23]} 24. Rxg5 {[%clk 0:00:56]}  hxg5 {[%clk 0:00:23]} 25. Qxg5 {[%clk 0:00:57]}  Qg6 {[%clk 0:00:23]} 26. Qf4 {[%clk 0:00:49]}  Rad8 {[%clk 0:00:22]} 27. Ne4 {[%clk 0:00:49]}  Nh5 {[%clk 0:00:20]} 28. Qh4 {[%clk 0:00:46]}  Kg7 {[%clk 0:00:19]} 29. g4 {[%clk 0:00:37]}  Rh8 {[%clk 0:00:17]} 30. gxh5 {[%clk 0:00:36]}  Rxh5 {[%clk 0:00:17]} 31. Qf6+ {[%clk 0:00:24]}  Qxf6 {[%clk 0:00:16]} 32. exf6+ {[%clk 0:00:25]}  Kh7 {[%clk 0:00:14]} 33. Rf3 {[%clk 0:00:24]}  Rdd5 {[%clk 0:00:13]} 34. Kg2 {[%clk 0:00:24]}  Rdf5 {[%clk 0:00:13]} 35. a4 {[%clk 0:00:22]}  bxa4 {[%clk 0:00:12]} 36. bxa4 {[%clk 0:00:22]}  Rxf3 {[%clk 0:00:13]} 37. Kxf3 {[%clk 0:00:22]}  Rxh3+ {[%clk 0:00:13]} 38. Kf4 {[%clk 0:00:20]}  Rh2 {[%clk 0:00:12]} 39. b4 {[%clk 0:00:19]}  Ra2 {[%clk 0:00:11]} 40. Nc5 {[%clk 0:00:19]}  Ra3 {[%clk 0:00:09]} 41. Ke5 {[%clk 0:00:17]}  Kg6 {[%clk 0:00:10]} 42. a5 {[%clk 0:00:16]}  Ra2 {[%clk 0:00:08]} 43. a6 {[%clk 0:00:16]}  Kg5 {[%clk 0:00:08]} 44. Kd6 {[%clk 0:00:14]}  Kxf6 {[%clk 0:00:07]} 45. Kxc6 {[%clk 0:00:14]}  Ke5 {[%clk 0:00:07]} 46. b5 {[%clk 0:00:15]}  f5 {[%clk 0:00:07]} 47. b6 {[%clk 0:00:15]}  f4 {[%clk 0:00:07]} 48. b7 {[%clk 0:00:16]}  Rb2 {[%clk 0:00:07]} 49. a7 {[%clk 0:00:16]}  f3 {[%clk 0:00:06]} 50. b8=Q+ {[%clk 0:00:16]}  Kd4 {[%clk 0:00:05]} 51. Qxb2+ {[%clk 0:00:15]} 1-0


[Site "https://www.chess.com"]

[Event "Titled Tuesday Blitz December 06 Early 2022"]
[White "Wieczorek, Zbigniew"]
[Black "Fecker, Noah"]
[WhiteFideId "1102001"]
[BlackFideId "1334263"]
[WhiteElo "2239"]
[BlackElo "2291"]
[Result "0-1"]
[Round "02"]
[TimeControl "180+1"]
[Date "2022.12.07"]
[WhiteClock "0:00:10"]
[BlackClock "0:00:19"]

1. Nf3 {[%clk 0:03:00]}  g6 {[%clk 0:02:56]} 2. c4 {[%clk 0:02:59]}  Bg7 {[%clk 0:02:54]} 3. Nc3 {[%clk 0:03:00]}  e5 {[%clk 0:02:54]} 4. d3 {[%clk 0:02:59]}  f5 {[%clk 0:02:50]} 5. g3 {[%clk 0:02:59]}  Nf6 {[%clk 0:02:50]} 6. Bg2 {[%clk 0:02:59]}  O-O {[%clk 0:02:51]} 7. O-O {[%clk 0:03:00]}  d6 {[%clk 0:02:50]} 8. Rb1 {[%clk 0:03:00]}  a5 {[%clk 0:02:45]} 9. a3 {[%clk 0:02:59]}  Nc6 {[%clk 0:02:42]} 10. Bg5 {[%clk 0:02:57]}  h6 {[%clk 0:02:42]} 11. Bxf6 {[%clk 0:02:56]}  Qxf6 {[%clk 0:02:43]} 12. b4 {[%clk 0:02:54]}  axb4 {[%clk 0:02:42]} 13. axb4 {[%clk 0:02:54]}  Bd7 {[%clk 0:02:39]} 14. b5 {[%clk 0:02:52]}  Ne7 {[%clk 0:02:39]} 15. Nd2 {[%clk 0:02:40]}  Rab8 {[%clk 0:02:35]} 16. Qb3 {[%clk 0:02:37]}  Kh7 {[%clk 0:02:31]} 17. Qb4 {[%clk 0:02:34]}  e4 {[%clk 0:02:12]} 18. Rbc1 {[%clk 0:02:28]}  c5 {[%clk 0:02:06]} 19. Qb3 {[%clk 0:02:23]}  exd3 {[%clk 0:01:52]} 20. exd3 {[%clk 0:02:22]}  g5 {[%clk 0:01:47]} 21. Rfe1 {[%clk 0:02:13]}  Ng6 {[%clk 0:01:46]} 22. Nd5 {[%clk 0:02:12]}  Qf7 {[%clk 0:01:44]} 23. Qc2 {[%clk 0:01:57]}  Rbe8 {[%clk 0:01:38]} 24. Nc7 {[%clk 0:01:49]}  Rxe1+ {[%clk 0:01:33]} 25. Rxe1 {[%clk 0:01:49]}  f4 {[%clk 0:01:31]} 26. Ne4 {[%clk 0:01:48]}  f3 {[%clk 0:01:29]} 27. Bf1 {[%clk 0:01:48]}  Be5 {[%clk 0:01:27]} 28. Nd5 {[%clk 0:01:42]}  Be6 {[%clk 0:01:23]} 29. d4 {[%clk 0:01:14]}  Bxd4 {[%clk 0:01:18]} 30. Nxd6 {[%clk 0:01:10]}  Qd7 {[%clk 0:01:11]} 31. Bd3 {[%clk 0:00:39]}  Bxd5 {[%clk 0:00:59]} 32. Bxg6+ {[%clk 0:00:37]}  Kh8 {[%clk 0:00:58]} 33. Nf5 {[%clk 0:00:27]}  Bg8 {[%clk 0:00:25]} 34. Nxh6 {[%clk 0:00:10]}  Qh3 {[%clk 0:00:19]} 0-1


[Site "https://www.chess.com"]

[Event "Titled Tuesday Blitz December 06 Early 2022"]
[White "Williams, Simon K"]
[Black "Sanchez, Robert"]
[WhiteFideId "404454"]
[BlackFideId "2034360"]
[WhiteElo "2468"]
[BlackElo "2337"]
[Result "0-1"]
[Round "02"]
[TimeControl "180+1"]
[Date "2022.12.07"]
[WhiteClock "0:00:12"]
[BlackClock "0:00:05"]

1. d4 {[%clk 0:03:00]}  Nf6 {[%clk 0:02:57]} 2. Bg5 {[%clk 0:02:59]}  d5 {[%clk 0:02:53]} 3. Nd2 {[%clk 0:02:57]}  Nbd7 {[%clk 0:02:48]} 4. Ngf3 {[%clk 0:02:57]}  c6 {[%clk 0:02:47]} 5. e3 {[%clk 0:02:56]}  e6 {[%clk 0:02:44]} 6. Bd3 {[%clk 0:02:54]}  Be7 {[%clk 0:02:44]} 7. O-O {[%clk 0:02:54]}  h6 {[%clk 0:02:43]} 8. Bh4 {[%clk 0:02:54]}  O-O {[%clk 0:02:43]} 9. Ne5 {[%clk 0:02:53]}  Nxe5 {[%clk 0:02:42]} 10. dxe5 {[%clk 0:02:53]}  Nd7 {[%clk 0:02:43]} 11. Bxe7 {[%clk 0:02:51]}  Qxe7 {[%clk 0:02:43]} 12. f4 {[%clk 0:02:51]}  f5 {[%clk 0:02:37]} 13. exf6 {[%clk 0:02:42]}  Qxf6 {[%clk 0:02:33]} 14. e4 {[%clk 0:02:35]}  Qxb2 {[%clk 0:02:24]} 15. e5 {[%clk 0:02:27]}  Nc5 {[%clk 0:02:06]} 16. Bg6 {[%clk 0:02:23]}  Bd7 {[%clk 0:02:00]} 17. Kh1 {[%clk 0:01:55]}  Qd4 {[%clk 0:01:52]} 18. g3 {[%clk 0:01:40]}  Be8 {[%clk 0:01:45]} 19. Bxe8 {[%clk 0:01:32]}  Raxe8 {[%clk 0:01:44]} 20. Qe2 {[%clk 0:01:31]}  Rf7 {[%clk 0:01:29]} 21. Rab1 {[%clk 0:01:20]}  Ref8 {[%clk 0:01:23]} 22. h4 {[%clk 0:01:17]}  g5 {[%clk 0:01:01]} 23. hxg5 {[%clk 0:01:04]}  hxg5 {[%clk 0:01:00]} 24. Nf3 {[%clk 0:00:56]}  Qe4 {[%clk 0:00:48]} 25. Qxe4 {[%clk 0:00:55]}  Nxe4 {[%clk 0:00:46]} 26. Kg2 {[%clk 0:00:53]}  gxf4 {[%clk 0:00:46]} 27. g4 {[%clk 0:00:52]}  Rg7 {[%clk 0:00:38]} 28. Nh2 {[%clk 0:00:41]}  b5 {[%clk 0:00:33]} 29. Rbd1 {[%clk 0:00:35]}  Kh7 {[%clk 0:00:27]} 30. Rd3 {[%clk 0:00:35]}  Kg6 {[%clk 0:00:27]} 31. Rh3 {[%clk 0:00:34]}  Rh7 {[%clk 0:00:21]} 32. Rxh7 {[%clk 0:00:34]}  Kxh7 {[%clk 0:00:22]} 33. Nf3 {[%clk 0:00:35]}  Kg6 {[%clk 0:00:20]} 34. Rh1 {[%clk 0:00:35]}  c5 {[%clk 0:00:15]} 35. Nh4+ {[%clk 0:00:30]}  Kg7 {[%clk 0:00:13]} 36. Kf3 {[%clk 0:00:29]}  Ng5+ {[%clk 0:00:12]} 37. Kf2 {[%clk 0:00:29]}  f3 {[%clk 0:00:11]} 38. Kg3 {[%clk 0:00:25]}  f2 {[%clk 0:00:10]} 39. Rf1 {[%clk 0:00:22]}  Ne4+ {[%clk 0:00:11]} 40. Kg2 {[%clk 0:00:22]}  Kh6 {[%clk 0:00:10]} 41. Nf3 {[%clk 0:00:22]}  Ng5 {[%clk 0:00:09]} 42. Nd2 {[%clk 0:00:16]}  c4 {[%clk 0:00:07]} 43. c3 {[%clk 0:00:16]}  a5 {[%clk 0:00:07]} 44. a3 {[%clk 0:00:16]}  Rf4 {[%clk 0:00:05]} 45. Rh1+ {[%clk 0:00:16]}  Kg6 {[%clk 0:00:05]} 46. Kg3 {[%clk 0:00:17]}  Rf8 {[%clk 0:00:05]} 47. Nf1 {[%clk 0:00:17]}  Ne4+ {[%clk 0:00:05]} 48. Kg2 {[%clk 0:00:17]}  Nxc3 {[%clk 0:00:06]} 49. Rh3 {[%clk 0:00:16]}  d4 {[%clk 0:00:06]} 50. g5 {[%clk 0:00:16]}  Ne4 {[%clk 0:00:06]} 51. Rh6+ {[%clk 0:00:15]}  Kxg5 {[%clk 0:00:05]} 52. Rxe6 {[%clk 0:00:15]}  Kf5 {[%clk 0:00:05]} 53. Re7 {[%clk 0:00:15]}  Nc5 {[%clk 0:00:05]} 54. Kxf2 {[%clk 0:00:14]}  Ke4+ {[%clk 0:00:05]} 55. Ke1 {[%clk 0:00:14]}  Nd3+ {[%clk 0:00:05]} 56. Kd2 {[%clk 0:00:12]}  Rf2+ {[%clk 0:00:04]} 57. Kd1 {[%clk 0:00:12]}  Rxf1+ {[%clk 0:00:05]} 58. Ke2 {[%clk 0:00:12]}  Rf2+ {[%clk 0:00:04]} 59. Kd1 {[%clk 0:00:12]}  c3 {[%clk 0:00:05]} 0-1


[Site "https://www.chess.com"]

[Event "Titled Tuesday Blitz December 06 Early 2022"]
[White "Wojtaszek, Radoslaw"]
[Black "Krzywda, Andrzej"]
[WhiteFideId "1118358"]
[BlackFideId "1114565"]
[WhiteElo "2605"]
[BlackElo "2149"]
[Result "1-0"]
[Round "02"]
[TimeControl "180+1"]
[Date "2022.12.07"]
[WhiteClock "0:00:40"]
[BlackClock "0:00:16"]

1. e4 {[%clk 0:03:00]}  c5 {[%clk 0:02:59]} 2. Nc3 {[%clk 0:03:00]}  Nc6 {[%clk 0:02:59]} 3. Bb5 {[%clk 0:03:00]}  Nd4 {[%clk 0:02:56]} 4. Bc4 {[%clk 0:03:00]}  e6 {[%clk 0:02:55]} 5. Nge2 {[%clk 0:02:57]}  a6 {[%clk 0:02:53]} 6. a4 {[%clk 0:02:56]}  Qc7 {[%clk 0:02:50]} 7. d3 {[%clk 0:02:54]}  Nc6 {[%clk 0:02:38]} 8. O-O {[%clk 0:02:47]}  Nf6 {[%clk 0:02:37]} 9. f4 {[%clk 0:02:45]}  Nb4 {[%clk 0:02:18]} 10. e5 {[%clk 0:02:32]}  Nfd5 {[%clk 0:02:02]} 11. Ne4 {[%clk 0:02:31]}  b6 {[%clk 0:01:58]} 12. c3 {[%clk 0:02:27]}  Nc6 {[%clk 0:01:58]} 13. N2g3 {[%clk 0:02:25]}  Bb7 {[%clk 0:01:55]} 14. Bxd5 {[%clk 0:01:54]}  exd5 {[%clk 0:01:55]} 15. Nd6+ {[%clk 0:01:54]}  Bxd6 {[%clk 0:01:50]} 16. exd6 {[%clk 0:01:55]}  Qxd6 {[%clk 0:01:46]} 17. Re1+ {[%clk 0:01:55]}  Kf8 {[%clk 0:01:46]} 18. Qe2 {[%clk 0:01:32]}  Ne7 {[%clk 0:01:36]} 19. d4 {[%clk 0:01:30]}  h5 {[%clk 0:01:34]} 20. Be3 {[%clk 0:01:03]}  h4 {[%clk 0:01:33]} 21. Nf1 {[%clk 0:01:02]}  Nf5 {[%clk 0:01:27]} 22. Qg4 {[%clk 0:01:00]}  g6 {[%clk 0:01:24]} 23. Bf2 {[%clk 0:01:00]}  Kg7 {[%clk 0:01:15]} 24. Re5 {[%clk 0:00:59]}  Rae8 {[%clk 0:00:53]} 25. Rxf5 {[%clk 0:00:57]}  Qe6 {[%clk 0:00:50]} 26. Rg5 {[%clk 0:00:56]}  Qe4 {[%clk 0:00:43]} 27. h3 {[%clk 0:00:49]}  f6 {[%clk 0:00:37]} 28. Re1 {[%clk 0:00:44]}  Qxe1 {[%clk 0:00:17]} 29. Rxg6+ {[%clk 0:00:43]}  Kf7 {[%clk 0:00:16]} 30. Bxe1 {[%clk 0:00:41]}  Rxe1 {[%clk 0:00:16]} 31. Rg7+ {[%clk 0:00:41]}  Kf8 {[%clk 0:00:16]} 32. Qxd7 {[%clk 0:00:40]} 1-0


[Site "https://www.chess.com"]